bitfinex/quotes_SOLUSD_20250819
["timestamp","ask_amount","ask_price","bid_price","bid_amount"]
[1755563708074,1e-08,182.98,182.97,87.61979369]
[1755563708280,0.71,183.1,183.04,26.0]
[1755563708603,16.417216,183.16,183.04,26.0]
[1755563708604,0.2,183.13,183.08,29.40357812]
[1755563708806,30.11357812,183.12,183.04,26.0]
[1755563708983,30.11357812,183.12,183.06,29.40357812]
[1755563709181,30.11357812,183.12,183.07,29.40357812]
[1755563709182,0.71,183.12,183.07,29.40357812]
[1755563709398,0.2,183.13,183.07,29.40357812]
[1755563709399,0.2,183.13,183.09,29.40357812]
[1755563709792,0.2,183.13,183.07,0.71]
[1755563709986,0.2,183.13,183.08,29.40357812]
[1755563710184,0.2,183.13,183.07,0.71]
[1755563710185,0.71,183.12,183.07,29.40357812]
[1755563710402,0.71,183.11,183.06,42.42]
[1755563710692,29.40357812,183.09,183.02,29.40357812]
[1755563710895,29.40357812,183.06,183.01,26.0]
[1755563711108,0.71,183.06,183.01,55.40357812]
[1755563711308,29.40357812,183.09,183.01,69.09]
[1755563711492,29.40357812,183.07,183.01,69.09]
[1755563711698,0.71,183.08,183.01,68.38]
[1755563712027,43.09,183.12,183.03,29.40357812]
[1755563712180,43.09,183.12,183.02,15.81621557]
[1755563712511,29.40357812,183.09,183.02,15.81621557]
[1755563712813,29.40357812,183.1,183.03,34.86716332]
[1755563713008,29.40357812,183.11,183.04,29.40357812]
[1755563713190,42.38,183.12,183.04,69.09]
[1755563713506,29.40357812,183.11,183.06,26.0]
[1755563713706,29.40357812,183.1,183.04,29.40357812]
[1755563714580,29.40357812,183.11,183.05,5.46298825]
[1755563714908,29.40357812,183.11,183.05,34.86656637]
[1755563715084,0.71,183.12,183.07,29.40357812]
[1755563715292,0.2,183.13,183.09,29.40357812]
[1755563716302,30.11357812,183.12,183.06,97.78357812]
[1755563716609,0.2,183.13,183.09,5.46179474]
[1755563716912,0.2,183.13,183.1,29.40357812]
[1755563717284,0.2,183.13,183.09,34.86537286]
[1755563717512,0.2,183.13,183.09,5.46179474]
[1755563717726,29.40357812,183.11,183.03,0.71]
[1755563717938,29.40357812,183.07,183.03,42.32]
[1755563718228,30.11357812,183.07,183.01,5.46418228]
[1755563718435,30.11357812,183.07,183.01,34.8677604]
[1755563718613,29.40357812,183.08,183.02,29.40357812]
[1755563718944,29.40357812,183.03,182.97,42.28]
[1755563719099,29.40357812,183.03,182.98,26.0]
[1755563719617,30.11357812,183.03,182.98,26.0]
[1755563719826,29.40357812,183.02,182.97,42.28]
[1755563720032,29.40357812,183.01,182.95,106.6105044]
[1755563720196,29.40357812,183.01,182.95,48.4359743]
[1755563720404,29.40357812,182.98,182.92,47.70687076]
[1755563720706,41.10621557,183.06,182.91,5.46712631]
[1755563720707,29.40357812,182.95,182.91,5.46712631]
[1755563721229,29.40357812,182.96,182.91,5.46712631]
[1755563721426,30.11357812,182.97,182.91,5.46712631]
[1755563721658,29.40357812,182.96,182.91,5.46712631]
[1755563721927,29.40357812,182.96,182.9,5.46746856]
[1755563722112,29.40357812,182.99,182.92,29.40357812]
[1755563722309,29.40357812,182.97,182.91,26.71]
[1755563722515,29.40357812,182.97,182.91,56.11357812]
[1755563722810,29.40357812,183.01,182.95,29.40357812]
[1755563723020,29.40357812,183.02,182.95,29.40357812]
[1755563723223,72.31357812,183.03,182.97,29.40357812]
[1755563723403,72.31357812,183.03,182.93,83.30621557]
[1755563723404,42.2,183.03,182.99,29.40357812]
[1755563723608,42.2,183.03,182.96,26.71]
[1755563723609,42.2,183.03,182.98,29.40357812]
[1755563723806,42.2,183.03,182.99,29.40357812]
[1755563724329,42.91,183.03,182.99,5.46462593]
[1755563724520,42.2,183.03,182.99,34.86820405]
[1755563724729,0.71,183.06,183.0,29.40357812]
[1755563724923,3.59594836,183.07,183.01,29.40357812]
[1755563725106,71.60357812,183.08,182.99,19.83657467]
[1755563725454,29.40357812,183.04,182.99,5.46462593]
[1755563725741,29.40357812,183.03,182.97,47.66511455]
[1755563726036,30.11357812,183.06,182.99,29.40357812]
[1755563726247,3.60582088,183.05,182.99,34.86833355]
[1755563726542,4.31582088,183.04,182.95,26.0]
[1755563726722,29.40357812,183.0,182.94,5.46627309]
[1755563727036,30.11357812,183.0,182.94,5.46627309]
[1755563727435,29.40357812,182.99,182.94,5.46627309]
[1755563727743,42.16,183.02,182.96,29.40357812]
[1755563727939,71.56357812,183.02,182.96,29.40357812]
[1755563728133,42.16,183.02,183.0,5.46448087]
[1755563729235,29.40357812,183.06,183.0,34.86805899]
[1755563729546,3.6251643,183.05,183.0,34.86805899]
[1755563729848,47.42144954,183.07,183.03,29.40357812]
[1755563729849,3.6251643,183.04,183.03,29.40357812]
[1755563730165,3.6251643,183.04,183.0,45.12568305]
[1755563730318,3.6251643,183.03,183.0,60.86805899]
[1755563730523,42.18,183.07,183.02,29.40357812]
[1755563730761,3.63085971,183.06,183.04,29.40357812]
[1755563731054,4.53144954,183.1,183.05,30.11357812]
[1755563731352,3.63617631,183.09,183.08,29.40357812]
[1755563732133,3.63617631,183.09,183.08,34.86567119]
[1755563732534,3.63617631,183.09,183.03,83.26621557]
[1755563732736,3.63617631,183.08,183.05,29.40357812]
[1755563732955,3.63617631,183.07,183.03,83.26621557]
[1755563733153,4.53144954,183.12,183.06,55.40357812]
[1755563733366,3.64283396,183.11,183.1,29.40357812]
[1755563733663,3.64283396,183.11,183.08,29.40357812]
[1755563733868,3.64283396,183.1,183.08,29.40357812]
[1755563734071,4.73144954,183.13,183.09,29.40357812]
[1755563734249,0.2,183.13,183.11,29.40357812]
[1755563734455,4.73144954,183.13,183.07,42.1]
[1755563734772,29.40357812,183.08,182.98,5.46507815]
[1755563734951,29.40357812,183.03,182.98,5.46507815]
[1755563735141,30.11357812,183.02,182.96,5.46567555]
[1755563735340,29.40357812,182.99,182.96,5.46567555]
[1755563735665,29.40357812,182.97,182.95,0.03]
[1755563735870,29.40357812,182.97,182.93,0.03]
[1755563735871,76.0585059,182.96,182.93,0.03]
[1755563736052,29.40357812,182.94,182.93,0.03]
[1755563736250,8.6051178,182.94,182.93,0.03]
[1755563736451,4.55407232,182.95,182.93,0.03]
[1755563736670,4.55407232,182.97,182.94,29.40357812]
[1755563736848,4.55407232,183.0,182.94,0.71]
[1755563737043,4.55407232,183.0,182.97,29.40357812]
[1755563737266,46.75407232,183.01,182.95,29.40357812]
[1755563737473,46.75407232,183.01,182.94,0.71]
[1755563737767,46.75407232,183.01,182.97,29.40357812]
[1755563737971,4.55407232,183.04,182.99,29.40357812]
[1755563738185,4.55407232,183.05,183.01,5.46418228]
[1755563738346,4.55407232,183.06,183.02,29.40357812]
[1755563738663,42.18,183.07,183.02,29.40357812]
[1755563738869,71.58357812,183.07,183.01,48.52821611]
[1755563739165,0.71,183.06,183.01,19.12463799]
[1755563739366,0.71,183.06,182.96,15.10621557]
[1755563739367,29.40357812,183.02,182.94,0.71]
[1755563739570,29.40357812,183.01,182.95,29.40357812]
[1755563739774,29.40357812,183.02,182.95,29.40357812]
[1755563739979,29.40357812,183.01,182.94,6.17627309]
[1755563740293,42.91,183.02,182.97,5.46537683]
[1755563740497,42.2,183.02,182.99,29.40357812]
[1755563740987,29.40357812,183.04,182.98,29.40357812]
[1755563741200,29.40357812,183.05,182.99,29.40357812]
[1755563741385,29.40357812,183.04,182.98,29.40357812]
[1755563741694,29.40357812,183.05,182.98,29.40357812]
[1755563741882,42.89,183.06,182.97,19.86881892]
[1755563741883,29.40357812,183.04,182.97,19.15881892]
[1755563742277,29.40357812,183.04,182.97,48.56239704]
[1755563742477,0.71,183.05,182.99,29.40357812]
[1755563742791,42.18,183.06,183.0,26.0]
[1755563743005,0.77,183.09,183.03,29.40357812]
[1755563743210,0.06,183.09,183.03,29.40357812]
[1755563743509,0.06,183.09,183.0,26.71]
[1755563743678,0.06,183.09,183.04,29.40357812]
[1755563744072,0.06,183.09,183.05,29.40357812]
[1755563744278,0.06,183.09,183.06,5.46268982]
[1755563745909,30.11357812,183.08,183.03,5.4635852]
[1755563746104,29.40357812,183.04,182.99,5.46477949]
[1755563746277,29.40357812,183.03,182.99,5.46477949]
[1755563746607,42.02,183.06,183.01,29.40357812]
[1755563746785,42.02,183.06,183.02,30.11357812]
[1755563747195,42.02,183.06,183.01,29.40357812]
[1755563747408,29.40357812,183.04,183.0,26.0]
[1755563747915,30.11357812,183.04,183.0,26.0]
[1755563748134,29.40357812,183.05,183.0,26.0]
[1755563748431,0.06,183.09,183.04,29.40357812]
[1755563748601,3.71875293,183.09,183.05,29.40357812]
[1755563748802,0.06,183.09,183.06,29.40357812]
[1755563749304,0.06,183.09,183.06,30.11357812]
[1755563750028,0.06,183.09,183.07,29.40357812]
[1755563750231,0.06,183.09,183.07,30.11357812]
[1755563750528,0.06,183.09,183.06,29.40357812]
[1755563751117,0.06,183.09,183.07,29.40357812]
[1755563751526,0.06,183.09,183.08,29.40357812]
[1755563752611,0.06,183.09,183.08,35.57567119]
[1755563755036,1e-08,183.09,183.08,92.54188676]
[1755563756727,1e-08,183.11,183.09,15.10621557]
[1755563756929,1e-08,183.11,183.1,29.40357812]
[1755563757238,1e-08,183.11,183.1,45.21979369]
[1755563757641,1e-08,183.15,183.14,41.10621557]
[1755563757842,1e-08,183.15,183.14,112.34979369]
[1755563758147,1e-08,183.15,183.14,118.52009728]
[1755563759258,7.30608947,183.29,183.25,29.40357812]
[1755563759541,3.654525,183.29,183.28,44.50979369]
[1755563759725,0.71,183.35,183.31,26.0]
[1755563759926,3.65156447,183.37,183.34,29.40357812]
[1755563760248,4.35604222,183.42,183.35,29.40357812]
[1755563760541,4.35604222,183.42,183.32,19.09229761]
[1755563760542,0.71,183.35,183.32,73.51494217]
[1755563760718,0.71,183.39,183.34,55.40357812]
[1755563760917,0.71,183.39,183.35,26.0]
[1755563761353,1e-08,183.36,183.35,112.56979369]
[1755563761562,1e-08,183.36,183.35,83.16621557]
[1755563762035,1e-08,183.36,183.35,88.6202652]
[1755563762339,1e-08,183.36,183.35,118.73384332]
[1755563763123,0.71,183.49,183.35,118.73384332]
[1755563763325,0.71,183.49,183.43,26.0]
[1755563763643,0.71,183.49,183.43,55.40357812]
[1755563763938,0.71,183.49,183.45,26.0]
[1755563764126,0.71,183.49,183.45,31.45082215]
[1755563764320,0.71,183.48,183.45,26.0]
[1755563764528,0.71,183.51,183.45,55.40357812]
[1755563764727,30.11357812,183.51,183.45,55.40357812]
[1755563765125,29.40357812,183.46,183.38,13.63283493]
[1755563765329,0.71,183.45,183.41,55.40357812]
[1755563765645,0.71,183.5,183.44,29.40357812]
[1755563765848,30.11357812,183.49,183.43,71.44357812]
[1755563766018,29.40357812,183.45,183.42,26.0]
[1755563766342,6.16021043,183.48,183.42,26.0]
[1755563766343,0.71,183.48,183.42,60.85548025]
[1755563766515,0.71,183.48,183.42,73.55190213]
[1755563766717,0.71,183.48,183.43,29.40357812]
[1755563767162,0.71,183.48,183.42,73.55190213]
[1755563767365,0.71,183.47,183.42,26.0]
[1755563767522,5.44939487,183.51,183.42,26.0]
[1755563767523,0.71,183.46,183.42,31.4519267]
[1755563767855,29.40357812,183.49,183.42,60.85550482]
[1755563768021,0.65,183.48,183.42,60.85550482]
[1755563768215,29.40357812,183.46,183.42,26.0]
[1755563768423,0.65,183.45,183.42,26.0]
[1755563768731,0.65,183.48,183.42,60.85542128]
[1755563769444,29.40357812,183.43,183.36,42.08]
[1755563769621,29.40357812,183.43,183.35,5.45404963]
[1755563769622,29.40357812,183.4,183.35,5.45404963]
[1755563769825,30.05357812,183.4,183.36,26.0]
[1755563770040,29.40357812,183.39,183.34,47.55433888]
[1755563770243,30.05357812,183.39,183.34,5.45433888]
[1755563770442,0.65,183.38,183.32,42.78]
[1755563770646,0.65,183.38,183.31,5.45523975]
[1755563770850,29.40357812,183.37,183.32,26.0]
[1755563771042,30.05357812,183.36,183.31,5.45523975]
[1755563771254,29.40357812,183.34,183.3,47.5754999]
[1755563771554,29.40357812,183.31,183.25,5.45702592]
[1755563771764,29.40357812,183.28,183.21,0.66]
[1755563771925,29.40357812,183.27,183.21,0.66]
[1755563772129,0.65,183.3,183.25,26.03]
[1755563772328,30.05357812,183.3,183.25,26.03]
[1755563772528,29.40357812,183.27,183.25,26.03]
[1755563772953,30.05357812,183.27,183.25,26.03]
[1755563773152,0.65,183.32,183.25,55.43357812]
[1755563773338,0.65,183.35,183.29,29.40357812]
[1755563773532,29.40357812,183.38,183.31,29.40357812]
[1755563773734,0.65,183.38,183.33,29.40357812]
[1755563773941,0.65,183.37,183.33,29.40357812]
[1755563774138,71.50357812,183.39,183.34,5.45434711]
[1755563774339,0.65,183.38,183.34,5.45434711]
[1755563774549,30.05357812,183.37,183.3,97.48357812]
[1755563774852,0.65,183.37,183.31,34.85881787]
[1755563775052,0.06,183.38,183.31,19.09333914]
[1755563775259,29.46357812,183.38,183.31,5.45523975]
[1755563775464,0.06,183.38,183.32,29.40357812]
[1755563775657,0.06,183.38,183.33,29.40357812]
[1755563776238,0.06,183.38,183.34,34.85792523]
[1755563776848,0.65,183.37,183.32,5.45468189]
[1755563777044,29.46357812,183.38,183.32,5.45468189]
[1755563777357,0.06,183.38,183.35,29.40357812]
[1755563777766,0.06,183.38,183.33,26.0]
[1755563777955,30.05357812,183.37,183.33,26.0]
[1755563778174,29.40357812,183.35,183.32,26.0]
[1755563778488,30.05357812,183.35,183.3,31.45553737]
[1755563778773,0.65,183.35,183.3,5.45553737]
[1755563778977,29.40357812,183.37,183.3,32.11553737]
[1755563779175,0.06,183.38,183.32,29.40357812]
[1755563779688,0.06,183.38,183.33,55.40357812]
[1755563780073,0.06,183.38,183.33,56.06357812]
[1755563780393,0.06,183.38,183.35,29.40357812]
[1755563781094,0.06,183.38,183.34,35.51792523]
[1755563781260,0.06,183.38,183.34,5.45434711]
[1755563781651,0.06,183.38,183.37,55.40357812]
[1755563782254,0.06,183.38,183.37,60.85703288]
[1755563782568,0.06,183.38,183.35,5.45381555]
[1755563782767,29.40357812,183.36,183.3,5.45553737]
[1755563782965,0.65,183.37,183.3,5.45553737]
[1755563782966,29.40357812,183.33,183.3,5.45553737]
[1755563783289,29.40357812,183.34,183.3,31.45553737]
[1755563783992,29.40357812,183.31,183.27,0.03]
[1755563784149,0.65,183.33,183.27,0.03]
[1755563784150,29.40357812,183.28,183.27,0.03]
[1755563784355,30.05357812,183.28,183.27,0.03]
[1755563784779,42.06,183.3,183.27,0.03]
[1755563784986,30.05357812,183.31,183.27,0.03]
[1755563785286,42.73,183.32,183.27,0.03]
[1755563785584,30.05357812,183.32,183.27,0.03]
[1755563786373,30.05357812,183.31,183.27,0.03]
[1755563786580,29.40357812,183.31,183.27,0.03]
[1755563786770,29.40357812,183.33,183.27,29.43357812]
[1755563786971,29.40357812,183.33,183.27,0.03]
[1755563787187,29.40357812,183.32,183.27,0.03]
[1755563787681,0.65,183.31,183.27,0.03]
[1755563787885,30.05357812,183.32,183.27,0.03]
[1755563788679,29.40357812,183.28,183.27,0.03]
[1755563788872,71.40357812,183.28,183.27,0.03]
[1755563789076,70.50979369,183.26,183.21,0.03]
[1755563789269,29.40357812,183.16,183.12,5.46089995]
[1755563789468,29.40357812,183.17,183.13,26.0]
[1755563789683,29.40357812,183.17,183.12,5.46089995]
[1755563789684,71.40357812,183.2,183.14,56.06357812]
[1755563789864,29.40357812,183.17,183.14,26.0]
[1755563790069,30.05357812,183.17,183.14,26.0]
[1755563790268,29.40357812,183.15,183.12,5.46089995]
[1755563790473,29.40357812,183.15,183.09,43.05779883]
[1755563790474,29.40357812,183.15,183.1,5.46149645]
[1755563790682,29.40357812,183.15,183.11,26.0]
[1755563790887,0.65,183.19,183.12,0.03]
[1755563791074,29.40357812,183.16,183.12,0.03]
[1755563791275,29.40357812,183.15,183.12,0.03]
[1755563791586,29.40357812,183.13,183.12,0.03]
[1755563791784,30.05357812,183.13,183.12,0.03]
[1755563793375,0.65,183.13,183.12,0.03]
[1755563793580,71.40357812,183.15,183.12,0.03]
[1755563793776,42.0,183.15,183.12,0.03]
[1755563794691,41.98,183.17,183.12,0.03]
[1755563794883,0.65,183.16,183.13,26.0]
[1755563795198,29.40357812,183.14,183.12,0.03]
[1755563795388,41.98,183.17,183.12,0.03]
[1755563795708,42.0,183.17,183.12,0.69]
[1755563795895,71.40357812,183.17,183.12,0.03]
[1755563796202,29.40357812,183.16,183.12,0.03]
[1755563796394,29.40357812,183.16,183.12,5.49089995]
[1755563796599,42.0,183.17,183.13,0.66]
[1755563796904,29.40357812,183.17,183.12,19.14314984]
[1755563797074,29.40357812,183.18,183.12,48.54672796]
[1755563797398,41.98,183.19,183.15,26.0]
[1755563797585,71.38357812,183.19,183.15,26.0]
[1755563797787,29.40357812,183.18,183.15,26.0]
[1755563797983,29.40357812,183.16,183.15,26.0]
[1755563798190,30.11357812,183.16,183.12,5.49089995]
[1755563798382,29.40357812,183.13,183.12,0.03]
[1755563798788,30.11357812,183.13,183.12,0.03]
[1755563799175,35.57417987,183.13,183.12,0.03]
[1755563799380,30.11357812,183.13,183.12,0.03]
[1755563799778,29.40357812,183.15,183.12,0.03]
[1755563799985,42.0,183.16,183.12,0.03]
[1755563800304,42.0,183.16,183.12,26.03]
[1755563800504,42.0,183.16,183.13,34.86417987]
[1755563800684,41.98,183.2,183.15,29.40357812]
[1755563800877,41.98,183.2,183.16,29.40357812]
[1755563801082,0.71,183.22,183.16,30.06357812]
[1755563801308,41.98,183.22,183.18,29.40357812]
[1755563801598,41.98,183.22,183.19,29.40357812]
[1755563801812,30.11357812,183.3,183.21,55.40357812]
[1755563801983,41.98,183.29,183.21,26.0]
[1755563802179,71.38357812,183.29,183.21,26.0]
[1755563802377,29.40357812,183.25,183.19,5.45881325]
[1755563802594,29.40357812,183.27,183.2,55.40357812]
[1755563802777,71.38357812,183.29,183.23,29.40357812]
[1755563802977,29.40357812,183.26,183.19,19.10584638]
[1755563803198,29.40357812,183.27,183.22,26.0]
[1755563803605,0.71,183.26,183.22,26.0]
[1755563804013,30.11357812,183.25,183.19,19.10584638]
[1755563804223,29.40357812,183.23,183.19,31.45881325]
[1755563804418,29.40357812,183.2,183.13,5.46060175]
[1755563804619,42.75,183.19,183.13,5.46060175]
[1755563804823,29.40357812,183.17,183.13,31.46060175]
[1755563805402,30.11357812,183.17,183.13,31.46060175]
[1755563805624,30.11357812,183.17,183.13,5.46060175]
[1755563805816,0.71,183.21,183.14,56.06357812]
[1755563806024,42.04,183.19,183.16,55.40357812]
[1755563806225,42.73,183.22,183.16,26.0]
[1755563806428,29.40357812,183.18,183.13,31.46060175]
[1755563806728,29.40357812,183.19,183.13,32.12060175]
[1755563806913,29.40357812,183.2,183.13,31.46060175]
[1755563807108,29.40357812,183.2,183.14,29.40357812]
[1755563807315,42.02,183.22,183.16,26.0]
[1755563807316,71.42357812,183.22,183.16,26.0]
[1755563807707,29.40357812,183.2,183.16,26.0]
[1755563808105,29.40357812,183.2,183.14,30.06357812]
[1755563808317,29.40357812,183.2,183.16,26.0]
[1755563808497,30.11357812,183.2,183.17,5.45940929]
[1755563808703,29.40357812,183.18,183.16,5.45964815]
[1755563808926,0.71,183.19,183.16,5.45964815]
[1755563809141,29.40357812,183.17,183.12,0.03]
[1755563809506,29.40357812,183.17,183.13,31.46060175]
[1755563809709,29.40357812,183.14,183.12,0.03]
[1755563809937,29.40357812,183.15,183.12,5.49073729]
[1755563810310,29.40357812,183.16,183.12,5.49073729]
[1755563810745,29.40357812,183.15,183.12,0.03]
[1755563810919,29.40357812,183.14,183.12,0.03]
[1755563811109,71.44357812,183.13,183.12,0.03]
[1755563811311,72.15357812,183.13,183.12,0.03]
[1755563812009,71.44357812,183.13,183.12,0.03]
[1755563812209,42.04,183.13,183.12,0.03]
[1755563814533,41.94,183.16,183.12,56.09357812]
[1755563814735,41.94,183.16,183.14,5.46030359]
[1755563815054,41.94,183.16,183.14,34.86388171]
[1755563815228,41.94,183.19,183.15,29.40357812]
[1755563816068,29.40357812,183.16,183.12,5.49085951]
[1755563816263,29.40357812,183.14,183.12,0.03]
[1755563816427,29.40357812,183.13,183.12,0.03]
[1755563816623,71.32357812,183.15,183.12,0.03]
[1755563817038,72.03357812,183.15,183.12,0.03]
[1755563817250,29.40357812,183.14,183.12,0.03]
[1755563817854,30.11357812,183.13,183.12,0.03]
[1755563818050,29.40357812,183.13,183.12,0.03]
[1755563819463,30.11357812,183.14,183.12,0.03]
[1755563819666,71.32357812,183.15,183.12,0.03]
[1755563819832,41.92,183.15,183.12,0.03]
[1755563820038,41.92,183.15,183.12,0.69]
[1755563820560,0.71,183.21,183.14,29.40357812]
[1755563820769,41.98,183.2,183.16,29.40357812]
[1755563820952,29.46357812,183.23,183.17,0.66]
[1755563821272,29.40357812,183.19,183.16,31.45970735]
[1755563821428,41.98,183.2,183.15,5.45993644]
[1755563821627,41.98,183.2,183.15,34.86351456]
[1755563821833,41.98,183.2,183.16,26.0]
[1755563822845,41.98,183.2,183.17,5.45940929]
[1755563823862,41.98,183.2,183.17,35.52298741]
[1755563824169,71.42357812,183.23,183.17,49.17151063]
[1755563824461,42.02,183.23,183.17,49.17151063]
[1755563824661,0.06,183.21,183.17,19.76793251]
[1755563825668,0.06,183.21,183.17,19.10793251]
[1755563826038,29.40357812,183.18,183.13,5.46060175]
[1755563826240,29.40357812,183.16,183.13,5.46060175]
[1755563826461,30.11357812,183.17,183.13,31.46060175]
[1755563826645,80.76,183.21,183.16,55.40357812]
[1755563826886,0.06,183.21,183.2,29.40357812]
[1755563827157,0.06,183.21,183.2,30.06357812]
[1755563827368,0.06,183.21,183.18,5.45911125]
[1755563827668,0.06,183.21,183.1,132.73]
[1755563827669,29.40357812,183.19,183.14,13.65044133]
[1755563827878,0.66,183.2,183.14,13.65044133]
[1755563827879,29.40357812,183.18,183.14,13.65044133]
[1755563828154,0.06,183.21,183.16,29.40357812]
[1755563828360,0.06,183.21,183.2,29.40357812]
[1755563828534,0.06,183.21,183.18,26.0]
[1755563828742,0.06,183.21,183.2,29.40357812]
[1755563828950,0.06,183.21,183.2,34.8620934]
[1755563829162,0.06,183.21,183.2,61.5120934]
[1755563829549,0.06,183.23,183.22,26.0]
[1755563829750,1e-08,183.23,183.22,55.40357812]
[1755563829959,1e-08,183.23,183.22,56.05357812]
[1755563830163,1e-08,183.23,183.22,71.15979369]
[1755563830631,1e-08,183.23,183.22,113.05979369]
[1755563830834,1e-08,183.25,183.23,15.10621557]
[1755563831038,1e-08,183.25,183.24,34.86090184]
[1755563831288,1e-08,183.25,183.24,35.51090184]
[1755563831454,0.06,183.27,183.24,35.51090184]
[1755563831455,0.06,183.27,183.26,41.10621557]
[1755563831641,3.65498738,183.34,183.26,112.40979369]
[1755563831841,3.65459387,183.36,183.32,26.0]
[1755563832151,3.65459387,183.39,183.35,55.40357812]
[1755563832466,3.65459387,183.43,183.38,29.40357812]
[1755563832776,3.65459387,183.44,183.41,29.40357812]
[1755563832979,11.5035574,183.5,183.45,26.0]
[1755563832980,3.65459387,183.47,183.45,26.0]
[1755563833150,6.05372008,183.54,183.41,19.08292895]
[1755563833151,3.65459387,183.49,183.46,30.05357812]
[1755563833351,3.64127135,183.53,183.48,29.40357812]
[1755563833547,16.383148,183.57,183.55,26.0]
[1755563833740,30.06357812,183.6,183.55,26.0]
[1755563833946,33.7042642,183.59,183.55,26.0]
[1755563834152,0.66,183.59,183.55,26.0]
[1755563834970,0.66,183.59,183.5,26.0]
[1755563834971,29.40357812,183.56,183.5,26.0]
[1755563835157,29.40357812,183.56,183.51,26.0]
[1755563835356,29.40357812,183.56,183.45,29.40357812]
[1755563835357,29.40357812,183.52,183.45,29.40357812]
[1755563835538,29.40357812,183.49,183.43,71.36357812]
[1755563835743,29.40357812,183.49,183.43,41.96]
[1755563835944,29.40357812,183.49,183.46,26.0]
[1755563836239,42.64,183.55,183.48,29.40357812]
[1755563836442,41.98,183.55,183.5,29.40357812]
[1755563837065,41.98,183.55,183.51,29.40357812]
[1755563837449,0.66,183.58,183.53,29.40357812]
[1755563837653,29.40357812,183.59,183.53,55.40357812]
[1755563837857,29.40357812,183.59,183.53,26.0]
[1755563838066,29.40357812,183.59,183.53,55.40357812]
[1755563838281,29.40357812,183.59,183.53,26.0]
[1755563838572,42.62,183.6,183.51,29.40357812]
[1755563838573,29.40357812,183.57,183.51,29.40357812]
[1755563838760,29.40357812,183.56,183.51,26.0]
[1755563838966,29.40357812,183.54,183.48,41.94]
[1755563839162,29.40357812,183.54,183.48,67.94]
[1755563839472,42.62,183.53,183.46,29.40357812]
[1755563839769,29.40357812,183.5,183.34,10.0]
[1755563839972,0.66,183.49,183.41,29.40357812]
[1755563840179,29.40357812,183.51,183.45,29.40357812]
[1755563840358,29.40357812,183.51,183.43,26.0]
[1755563840552,29.40357812,183.49,183.43,26.0]
[1755563840752,29.40357812,183.49,183.43,55.40357812]
[1755563841196,0.66,183.52,183.44,29.40357812]
[1755563841371,41.96,183.53,183.48,29.40357812]
[1755563841565,42.6,183.55,183.49,55.40357812]
[1755563841754,42.6,183.55,183.5,29.40357812]
[1755563841952,41.94,183.55,183.5,30.05357812]
[1755563842153,41.94,183.55,183.51,55.40357812]
[1755563842376,29.40357812,183.53,183.47,0.65]
[1755563842693,0.66,183.54,183.47,0.65]
[1755563842694,29.40357812,183.5,183.47,26.0]
[1755563842867,29.40357812,183.49,183.44,41.94]
[1755563843175,41.94,183.55,183.46,26.0]
[1755563843353,30.06357812,183.53,183.46,29.40357812]
[1755563844258,0.66,183.53,183.47,55.40357812]
[1755563844464,41.94,183.54,183.47,32.10040685]
[1755563845184,29.40357812,183.52,183.47,26.0]
[1755563845480,30.06357812,183.51,183.47,26.0]
[1755563845693,30.06357812,183.5,183.47,26.0]
[1755563846191,30.06357812,183.49,183.42,76.77552496]
[1755563846497,0.66,183.53,183.47,26.0]
[1755563846856,41.94,183.54,183.49,29.40357812]
[1755563847066,41.9,183.56,183.5,29.40357812]
[1755563847266,71.30357812,183.56,183.49,26.65]
[1755563847491,29.40357812,183.53,183.49,26.0]
[1755563847665,29.40357812,183.52,183.49,26.0]
[1755563847988,30.06357812,183.51,183.47,26.0]
[1755563848165,29.40357812,183.49,183.46,26.0]
[1755563848860,29.40357812,183.48,183.42,76.75550844]
[1755563849063,29.40357812,183.49,183.44,26.0]